[Event "80th ARM-ch 1st League 2019"]
[Site "Yerevan"]
[Date "2019.08.31"]
[Round "13.5"]
[White "Harutyunian, Tigran K."]
[Black "Chaqryan, Erik"]
[Result "1/2-1/2"]
[ECO "A05"]
[WhiteElo "2555"]
[BlackElo "2105"]
[Annotator "ChessBase"]
[PlyCount "124"]
[EventDate "2019.08.18"]
[EventType "tourn"]
[EventCountry "ARM"]
[SourceTitle "playchess.com"]
[Source "ChessBase"]
[SourceQuality "1"]
[TimeControl "40/5400+30:1800+30"]

1. Nf3 {[%emt 0:00:00]} Nf6 {[%emt 0:00:00]} 2. g3 {[%emt 0:00:00]} g6 {[%emt 0:00:00]} 3. Bg2 {[%emt 0:00:01]} Bg7 {[%emt 0:00:00]} 4. d4 {[%emt 0:00:11]} O-O {[%emt 0:00:00]} 5. O-O {[%emt 0:00:04]} d6 {[%emt 0:00:09]} 6. Re1 {[%emt 0:00:07]} Nbd7 {[%emt 0:01:30]} 7. e4 {[%emt 0:00:19]} e5 {[%emt 0:00:10]} 8. Nc3 {[%emt 0:00:08]} exd4 {[%emt 0:01:43]} 9. Nxd4 {[%emt 0:00:15]} Re8 {[%emt 0:00:34]} 10. h3 {[%emt 0:01:24]} Nc5 {[%emt 0:01:29]} 11. Nb3 {[%emt 0:00:53]} Ne6 {[%emt 0:07:04]} 12. Be3 {[%emt 0:02:59]} a6 {[%emt 0:14:54]} 13. Qd2 {[%emt 0:01:36]} Rb8 {[%emt 0:02:44]} 14. Rad1 {[%emt 0:00:41]} b6 {[%emt 0:02:34]} 15. Bh6 {[%emt 0:09:42]} Bh8 {[%emt 0:14:31]} 16. f4 {[%emt 0:01:30]} Nd7 {[%emt 0:08:11]} 17. f5 {[%emt 0:09:19]} Nec5 {[%emt 0:01:26]} 18. Bg5 {[%emt 0:02:51]} Nxb3 {[%emt 0:10:59]} 19. axb3 {[%emt 0:00:25]} f6 {[%emt 0:00:30]} 20. Bh6 {[%emt 0:01:42]} Bg7 {[%emt 0:02:51]} 21. Nd5 {[%emt 0:01:03]} g5 {[%emt 0:02:52]} 22. Bxg7 {[%emt 0:04:37]} Kxg7 {[%emt 0:00:02]} 23. Qc3 {[%emt 0:00:16]} Rb7 {[%emt 0:02:14]} 24. Nb4 {[%emt 0:11:15]} Ne5 {[%emt 0:06:04]} 25. Nxa6 {[%emt 0:03:42]} Ra7 {[%emt 0:00:20]} 26. Nb4 {[%emt 0:00:24]} Bb7 {[%emt 0:00:06]} 27. Nd3 {[%emt 0:02:48]} Qb8 {[%emt 0:06:57]} 28. b4 {[%emt 0:00:45]} Re7 {[%emt 0:01:54]} 29. Nc1 {[%emt 0:01:55]} Bc6 {[%emt 0:08:42]} 30. Nb3 {[%emt 0:00:47]} Bd7 {[%emt 0:01:06]} 31. Nd4 {[%emt 0:00:06]} Qa8 {[%emt 0:02:03]} 32. b5 {[%emt 0:00:37]} Re8 {[%emt 0:00:28]} 33. Bf1 {[%emt 0:00:37]} Re7 {[%emt 0:01:44]} 34. Bc4 {[%emt 0:00:11]} Nxc4 {[%emt 0:00:24]} 35. Qxc4 {[%emt 0:00:02]} Re5 {[%emt 0:00:07]} 36. b4 {[%emt 0:01:23]} h6 {[%emt 0:01:02]} 37. Qe2 {[%emt 0:04:03]} Qe8 {[%emt 0:00:20]} 38. Nf3 {[%emt 0:00:50]} Rxb5 {[%emt 0:00:36]} 39. c3 {[%emt 0:04:10]} Qh5 {[%emt 0:00:32]} 40. Kh2 {[%emt 0:00:00]} Ra3 {[%emt 0:00:00]} 41. Rc1 {[%emt 0:15:31]} Qf7 {[%emt 0:12:11]} 42. Rc2 {[%emt 0:00:46]} h5 {[%emt 0:05:05]} 43. Rb1 {[%emt 0:02:05]} c5 {[%emt 0:04:24]} 44. Nd2 {[%emt 0:05:49]} d5 {[%emt 0:05:34]} 45. e5 {[%emt 0:15:08]} Bxf5 {[%emt 0:01:51]} 46. Qxb5 {[%emt 0:02:14]} Bxc2 {[%emt 0:00:02]} 47. Rf1 {[%emt 0:00:02]} f5 {[%emt 0:00:59]} 48. bxc5 {[%emt 0:00:13]} bxc5 {[%emt 0:00:41]} 49. Qb2 {[%emt 0:00:10]} Qa7 {[%emt 0:01:32]} 50. Qxc2 {[%emt 0:00:15]} Ra2 {[%emt 0:00:03]} 51. Qd3 {[%emt 0:00:23]} c4 {[%emt 0:00:28]} 52. Qe2 {[%emt 0:01:07]} d4 {[%emt 0:01:04]} 53. e6 {[%emt 0:01:33]} Qe7 {[%emt 0:01:10]} 54. Rf3 {[%emt 0:03:57]} dxc3 {[%emt 0:02:16]} 55. Rxc3 Qd6 56. e7 {[%emt 0:04:41]} Qxd2 {[%emt 0:00:05]} 57. Qxd2 {[%emt 0:00:46]} Rxd2+ {[%emt 0:00:01]} 58. Kg1 {[%emt 0:00:06]} Re2 {[%emt 0:01:58]} 59. Rxc4 {[%emt 0:00:15]} Rxe7 {[%emt 0:00:06]} 60. Kf2 {[%emt 0:00:46]} Re2+ 61. Kg1 Rd2 62. Rc3 Kf7 1/2-1/2

[Event "80th ARM-ch 1st League 2019"]
[Site "Yerevan"]
[Date "2019.08.31"]
[Round "13.6"]
[White "Shahinyan, David"]
[Black "Hayrapetyan, Hovik"]
[Result "1-0"]
[ECO "B24"]
[WhiteElo "2452"]
[BlackElo "2453"]
[Annotator "ChessBase"]
[PlyCount "83"]
[EventDate "2019.08.18"]
[EventType "tourn"]
[EventCountry "ARM"]
[SourceTitle "playchess.com"]
[Source "ChessBase"]
[SourceQuality "1"]
[TimeControl "40/5400+30:1800+30"]

1. e4 {[%emt 0:00:00]} c5 {[%emt 0:00:00]} 2. Nc3 {[%emt 0:00:03]} Nc6 {[%emt 0:00:00]} 3. Bb5 {[%emt 0:00:15]} e6 {[%emt 0:00:46]} 4. Bxc6 {[%emt 0:02:47]} bxc6 {[%emt 0:00:14]} 5. d3 {[%emt 0:00:53]} d5 {[%emt 0:03:09]} 6. Nf3 {[%emt 0:02:44]} Nf6 {[%emt 0:00:37]} 7. O-O {[%emt 0:00:08]} Be7 {[%emt 0:00:02]} 8. Re1 {[%emt 0:10:29]} Nd7 {[%emt 0:05:04]} 9. Qe2 {[%emt 0:01:59]} Bb7 {[%emt 0:04:16]} 10. Nd1 {[%emt 0:02:25]} Qc7 {[%emt 0:04:08]} 11. e5 {[%emt 0:04:58]} c4 {[%emt 0:06:00]} 12. dxc4 {[%emt 0:04:15]} Ba6 {[%emt 0:00:18]} 13. b3 {[%emt 0:03:05]} dxc4 {[%emt 0:01:42]} 14. Bg5 {[%emt 0:01:29]} Ba3 {[%emt 0:05:49]} 15. Qe4 {[%emt 0:03:05]} Rb8 {[%emt 0:01:00]} 16. Qg4 {[%emt 0:09:15]} h6 {[%emt 0:06:21]} 17. Bd2 {[%emt 0:04:13]} Kf8 {[%emt 0:01:41]} 18. Nc3 {[%emt 0:02:23]} Nb6 {[%emt 0:08:19]} 19. Rad1 {[%emt 0:04:33]} Be7 {[%emt 0:02:37]} 20. Ne4 {[%emt 0:01:43]} cxb3 {[%emt 0:12:15]} 21. axb3 {[%emt 0:01:46]} c5 {[%emt 0:00:21]} 22. Nd6 {[%emt 0:03:14]} Nd5 {[%emt 0:07:17]} 23. c4 {[%emt 0:02:37]} Nb4 {[%emt 0:00:22]} 24. Bxb4 {[%emt 0:08:34]} cxb4 {[%emt 0:02:24]} 25. Qf4 {[%emt 0:05:54]} Bd8 {[%emt 0:00:33]} 26. Nd4 {[%emt 0:03:09]} Kg8 {[%emt 0:01:10]} 27. Ra1 {[%emt 0:03:35]} g5 {[%emt 0:00:37]} 28. Qd2 {[%emt 0:02:42]} Rb6 {[%emt 0:02:39]} 29. N4b5 {[%emt 0:02:20]} Qd7 {[%emt 0:00:32]} 30. Nxa7 {[%emt 0:00:57]} Qxa7 {[%emt 0:03:17]} 31. Nc8 {[%emt 0:00:05]} Qc7 {[%emt 0:00:02]} 32. Nxb6 {[%emt 0:00:08]} Bb7 {[%emt 0:00:02]} 33. Na4 {[%emt 0:03:20]} Be7 {[%emt 0:00:44]} 34. Qd4 {[%emt 0:01:31]} Qc6 {[%emt 0:00:09]} 35. f3 {[%emt 0:00:06]} Kg7 {[%emt 0:00:01]} 36. Rad1 {[%emt 0:00:43]} Rd8 {[%emt 0:01:29]} 37. Qe3 {[%emt 0:01:30]} Ra8 {[%emt 0:00:05]} 38. Kh1 {[%emt 0:00:46]} g4 {[%emt 0:00:05]} 39. Rf1 {[%emt 0:01:22]} h5 {[%emt 0:05:49]} 40. Rd2 {[%emt 0:00:00]} h4 {[%emt 0:00:00]} 41. fxg4 {[%emt 0:03:19]} h3 {[%emt 0:06:20]} 42. Qxh3 {[%emt 0:00:32]} 1-0

[Event "80th ARM-ch 1st League 2019"]
[Site "Yerevan"]
[Date "2019.08.31"]
[Round "13.7"]
[White "Davtyan, Artur"]
[Black "Harutjunyan, Gevorg"]
[Result "1-0"]
[ECO "E73"]
[WhiteElo "2440"]
[BlackElo "2455"]
[Annotator "ChessBase"]
[PlyCount "107"]
[EventDate "2019.08.18"]
[EventType "tourn"]
[EventCountry "ARM"]
[SourceTitle "playchess.com"]
[Source "ChessBase"]
[SourceQuality "1"]
[TimeControl "40/5400+30:1800+30"]

1. d4 {[%emt 0:07:10]} Nf6 {[%emt 0:00:00]} 2. c4 {[%emt 0:00:14]} g6 {[%emt 0:00:00]} 3. Nc3 {[%emt 0:00:08]} Bg7 {[%emt 0:00:08]} 4. e4 {[%emt 0:00:04]} d6 {[%emt 0:00:08]} 5. Be2 {[%emt 0:00:04]} O-O {[%emt 0:00:09]} 6. Be3 {[%emt 0:00:02]} Na6 {[%emt 0:00:54]} 7. Nf3 {[%emt 0:00:16]} e5 {[%emt 0:01:40]} 8. O-O {[%emt 0:00:09]} c6 {[%emt 0:01:17]} 9. d5 {[%emt 0:14:11]} Ng4 {[%emt 0:02:45]} 10. Bg5 {[%emt 0:00:23]} f6 {[%emt 0:00:10]} 11. Bd2 {[%emt 0:00:13]} Nh6 {[%emt 0:03:48]} 12. Rb1 {[%emt 0:06:26]} c5 {[%emt 0:01:20]} 13. a3 {[%emt 0:03:20]} Nf7 {[%emt 0:00:24]} 14. b4 {[%emt 0:00:05]} f5 {[%emt 0:00:44]} 15. Ne1 {[%emt 0:02:14]} Bd7 {[%emt 0:07:06]} 16. Nd3 {[%emt 0:00:28]} b6 {[%emt 0:00:32]} 17. b5 {[%emt 0:12:50]} Nc7 {[%emt 0:00:19]} 18. a4 {[%emt 0:00:02]} Ne8 {[%emt 0:03:23]} 19. Ra1 {[%emt 0:03:12]} Nf6 {[%emt 0:06:36]} 20. f3 {[%emt 0:00:03]} h5 {[%emt 0:16:12]} 21. a5 {[%emt 0:00:37]} Rb8 {[%emt 0:00:10]} 22. axb6 {[%emt 0:02:12]} axb6 {[%emt 0:00:05]} 23. Ra7 {[%emt 0:00:05]} Bh6 {[%emt 0:13:08]} 24. Bxh6 {[%emt 0:01:55]} Nxh6 {[%emt 0:00:08]} 25. Qd2 {[%emt 0:00:02]} f4 {[%emt 0:01:41]} 26. Nxf4 {[%emt 0:24:31]} exf4 {[%emt 0:00:19]} 27. Qxf4 Nf7 {[%emt 0:02:44]} 28. Qg3 {[%emt 0:00:11]} Kh7 {[%emt 0:10:11]} 29. f4 {[%emt 0:01:37]} Qe7 {[%emt 0:03:13]} 30. Bd3 {[%emt 0:01:42]} Rg8 {[%emt 0:00:36]} 31. Qh4 {[%emt 0:03:14]} Rbe8 {[%emt 0:02:36]} 32. h3 {[%emt 0:06:21]} Kh6 {[%emt 0:03:44]} 33. Qf2 {[%emt 0:04:59]} Ref8 {[%emt 0:03:43]} 34. Qe3 {[%emt 0:02:01]} Kh7 {[%emt 0:02:07]} 35. Re1 {[%emt 0:05:56]} Re8 {[%emt 0:01:16]} 36. Na4 {[%emt 0:00:28]} Qd8 {[%emt 0:00:48]} 37. Qf2 {[%emt 0:00:33]} Rg7 {[%emt 0:07:52]} 38. Qb2 {[%emt 0:00:23]} h4 {[%emt 0:00:33]} 39. Qf2 {[%emt 0:00:36]} Nh5 {[%emt 0:00:15]} 40. Nxb6 {[%emt 0:00:00]} Bxb5 {[%emt 0:00:00]} 41. Na8 {[%emt 0:11:32]} Bd7 {[%emt 0:07:03]} 42. Nc7 {[%emt 0:00:08]} Re7 {[%emt 0:12:19]} 43. e5 {[%emt 0:04:49]} Qb8 {[%emt 0:13:28]} 44. Ra8 {[%emt 0:11:34]} Qb3 {[%emt 0:01:20]} 45. Be4 {[%emt 0:04:46]} Ng3 {[%emt 0:04:46]} 46. e6 {[%emt 0:00:01]} Qxc4 {[%emt 0:00:19]} 47. exd7 {[%emt 0:01:01]} Rxe4 {[%emt 0:00:29]} 48. Ne6 {[%emt 0:00:02]} Qxd5 {[%emt 0:00:30]} 49. Ng5+ {[%emt 0:00:35]} Nxg5 {[%emt 0:00:51]} 50. d8=Q {[%emt 0:00:01]} Rxe1+ {[%emt 0:00:38]} 51. Qxe1 {[%emt 0:00:06]} Qd4+ {[%emt 0:00:26]} 52. Kh2 {[%emt 0:00:01]} Nf3+ 53. gxf3 {[%emt 0:00:02]} Qb2+ {[%emt 0:01:06]} 54. Kg1 {[%emt 0:00:01]} 1-0